fUST/lending_fUST_20250531
["ID","MTS","AMOUNT","RATE_DAILY","PERIOD"]
[363232387,1748634638984,-430.0,0.00016438,2]
[363232388,1748634638993,-1248.66,0.00016438,2]
[363232389,1748634639003,-430.0,0.00016438,2]
[363232390,1748634639013,-430.0,0.00016438,2]
[363232391,1748634639022,-977.22,0.00016438,2]
[363232392,1748634639032,-430.0,0.00016438,2]
[363232393,1748634639042,-430.0,0.00016438,2]
[363232394,1748634639051,-431.85,0.00016438,2]
[363232395,1748634639062,-430.0,0.00016438,2]
[363232396,1748634639071,-430.0,0.00016438,2]
[363232397,1748634639081,-4577.40218308,0.00016612,2]
[363232398,1748634639091,-500.0,0.00016654,2]
[363232399,1748634639100,-430.0,0.00016712,2]
[363232400,1748634639110,-430.0,0.00016712,2]
[363232401,1748634639121,-430.0,0.00016712,2]
[363232402,1748634639130,-430.0,0.00016712,2]
[363232403,1748634639140,-430.0,0.00016712,2]
[363232404,1748634639150,-430.0,0.00016712,2]
[363232405,1748634639162,-430.0,0.00016712,2]
[363232406,1748634639172,-1155.74,0.00016712,2]
[363232407,1748634639183,-430.0,0.00016712,2]
[363232408,1748634639194,-1280.42,0.00016712,2]
[363232409,1748634639203,-430.0,0.00016712,2]
[363232410,1748634639213,-1990.99,0.00016712,2]
[363232411,1748634639222,-430.0,0.00016712,2]
[363232412,1748634639232,-470.16,0.00016712,2]
[363232413,1748634639242,-1804.47,0.00016712,2]
[363232414,1748634639251,-1967.26,0.00016712,2]
[363232415,1748634639261,-1249.25,0.00016712,2]
[363232416,1748634639271,-527.39,0.00016712,2]
[363232417,1748634639283,-2483.78,0.00016712,2]
[363232418,1748634639294,-465.52,0.00016712,2]
[363232419,1748634639303,-540.9,0.00016712,2]
[363232420,1748634639314,-430.0,0.00016712,2]
[363232421,1748634639324,-430.0,0.00016712,2]
[363232422,1748634639335,-566.93,0.00016712,2]
[363232423,1748634639346,-430.0,0.00016712,2]
[363232424,1748634639356,-2327.39,0.00016712,2]
[363232425,1748634639369,-430.0,0.00016712,2]
[363232426,1748634639386,-465.5,0.00016712,2]
[363232427,1748634639395,-430.0,0.00016712,2]
[363232428,1748634639406,-718.77,0.00016712,2]
[363232429,1748634639415,-4336.15,0.00016712,2]
[363232430,1748634639426,-477.09,0.00016712,2]
[363232431,1748634639435,-656.88,0.00016712,2]
[363232432,1748634639447,-708.34,0.00016712,2]
[363232433,1748634639457,-289.33,0.00016712,2]
[363232434,1748634639467,-1988.45,0.00016712,2]
[363232435,1748634639477,-430.0,0.00016712,2]
[363232436,1748634639487,-494.1,0.00016712,2]
[363232437,1748634639497,-430.0,0.00016712,2]
[363232438,1748634639507,-2611.6,0.00016712,2]
[363232439,1748634639516,-430.0,0.00016712,2]
[363232440,1748634639526,-430.0,0.00016712,2]
[363232441,1748634639536,-1821.01,0.00016712,2]
[363232442,1748634639546,-430.0,0.00016712,2]
[363232443,1748634639556,-430.0,0.00016712,2]
[363232444,1748634639573,-810.98,0.00016712,2]
[363232445,1748634639583,-776.71,0.00016712,2]
[363232446,1748634639593,-1097.75,0.00016712,2]
[363232447,1748634639603,-1529.5,0.00016712,2]
[363232448,1748634639612,-430.0,0.00016712,2]
[363232449,1748634639621,-430.0,0.00016712,2]
[363232450,1748634639631,-430.0,0.00016712,2]
[363232451,1748634639644,-430.0,0.00016712,2]
[363232452,1748634639654,-430.0,0.00016712,2]
[363232453,1748634639663,-430.0,0.00016712,2]
[363232454,1748634639673,-1248.66,0.00016712,2]
[363232455,1748634639682,-430.0,0.00016712,2]
[363232456,1748634639692,-430.0,0.00016712,2]
[363232457,1748634639701,-977.22,0.00016712,2]
[363232458,1748634639711,-430.0,0.00016712,2]
[363232459,1748634639720,-430.0,0.00016712,2]
[363232460,1748634639730,-431.85,0.00016712,2]
[363232461,1748634639740,-430.0,0.00016712,2]
[363232462,1748634639749,-430.0,0.00016712,2]
[363232463,1748634639759,-420.0,0.0001676,2]
[363232464,1748634639769,-6481.02,0.00016894,2]
[363232465,1748634639779,-430.0,0.00016985,2]
[363232466,1748634639788,-907.17,0.00016985,2]
[363232467,1748634639798,-430.0,0.00016985,2]
[363232469,1748634639807,-430.0,0.00016986,2]
[363232470,1748634639817,-430.0,0.00016986,2]
[363232471,1748634639826,-430.0,0.00016986,2]
[363232472,1748634639835,-430.0,0.00016986,2]
[363232473,1748634639845,-430.0,0.00016986,2]
[363232474,1748634639854,-430.0,0.00016986,2]
[363232475,1748634639864,-1155.74,0.00016986,2]
[363232476,1748634639874,-430.0,0.00016986,2]
[363232477,1748634639883,-1280.42,0.00016986,2]
[363232478,1748634639893,-430.0,0.00016986,2]
[363232479,1748634639903,-1990.99,0.00016986,2]
[363232481,1748634639913,-430.0,0.00016986,2]
[363232483,1748634639923,-470.16,0.00016986,2]
[363232484,1748634639932,-1804.47,0.00016986,2]
[363232485,1748634639943,-1967.26,0.00016986,2]
[363232486,1748634639953,-1249.25,0.00016986,2]
[363232488,1748634639963,-527.39,0.00016986,2]
[363232489,1748634639973,-2483.78,0.00016986,2]
[363232491,1748634639982,-465.52,0.00016986,2]
[363232493,1748634639992,-540.9,0.00016986,2]
[363232495,1748634640001,-430.0,0.00016986,2]
[363232497,1748634640010,-430.0,0.00016986,2]
[363232499,1748634640020,-566.93,0.00016986,2]
[363232501,1748634640029,-430.0,0.00016986,2]
[363232504,1748634640040,-2327.39,0.00016986,2]
[363232506,1748634640050,-430.0,0.00016986,2]
[363232508,1748634640060,-465.5,0.00016986,2]
[363232510,1748634640070,-430.0,0.00016986,2]
[363232512,1748634640079,-718.77,0.00016986,2]
[363232514,1748634640089,-4336.15,0.00016986,2]
[363232516,1748634640098,-477.09,0.00016986,2]
[363232518,1748634640108,-656.88,0.00016986,2]
[363232520,1748634640119,-708.34,0.00016986,2]
[363232522,1748634640127,-1988.45,0.00016986,2]
[363232524,1748634640137,-430.0,0.00016986,2]
[363232526,1748634640147,-494.1,0.00016986,2]
[363232528,1748634640157,-552.07633703,0.00016986,2]
[363232530,1748634640166,-2611.6,0.00016986,2]
[363232532,1748634640176,-430.0,0.00016986,2]
[363232534,1748634640185,-430.0,0.00016986,2]
[363232536,1748634640197,-1821.01,0.00016986,2]
[363232538,1748634640207,-430.0,0.00016986,2]
[363232540,1748634640217,-430.0,0.00016986,2]
[363232542,1748634640227,-810.98,0.00016986,2]
[363232544,1748634640237,-776.71,0.00016986,2]
[363232546,1748634640246,-1097.75,0.00016986,2]
[363232548,1748634640256,-1529.5,0.00016986,2]
[363232549,1748634640265,-430.0,0.00016986,2]
[363232551,1748634640278,-430.0,0.00016986,2]
[363232552,1748634640287,-430.0,0.00016986,2]
[363232554,1748634640296,-430.0,0.00016986,2]
[363232556,1748634640306,-430.0,0.00016986,2]
[363232557,1748634640316,-430.0,0.00016986,2]
[363232558,1748634640325,-1248.66,0.00016986,2]
[363232560,1748634640335,-430.0,0.00016986,2]
[363232562,1748634640345,-430.0,0.00016986,2]
[363232563,1748634640357,-977.22,0.00016986,2]
[363232565,1748634640368,-430.0,0.00016986,2]
[363232566,1748634640378,-430.0,0.00016986,2]
[363232568,1748634640387,-431.85,0.00016986,2]
[363232569,1748634640397,-430.0,0.00016986,2]
[363232571,1748634640406,-430.0,0.00016986,2]
[363232572,1748634640415,-4577.40218304,0.00017182,2]
[363232574,1748634640425,-176.414694,0.00017233,2]
[363232575,1748634640434,-158.4280407,0.00017233,2]
[363232577,1748634640445,-441.6677592,0.00017233,2]
[363232578,1748634640456,-158.4280407,0.00017233,2]
[363232580,1748634640465,-321.1678625,0.00017233,2]
[363232581,1748634640475,-907.17,0.00017259,2]
[363232583,1748634640484,-430.0,0.00017259,2]
[363232585,1748634640494,-430.0,0.0001726,2]
[363232586,1748634640503,-430.0,0.0001726,2]
[363232588,1748634640513,-430.0,0.0001726,2]
[363232590,1748634640522,-430.0,0.0001726,2]
[363232591,1748634640532,-430.0,0.0001726,2]
[363232593,1748634640544,-430.0,0.0001726,2]
[363232595,1748634640553,-1155.74,0.0001726,2]
[363232596,1748634640563,-430.0,0.0001726,2]
[363232597,1748634640573,-1280.42,0.0001726,2]
[363232599,1748634640582,-430.0,0.0001726,2]
[363232601,1748634640591,-1990.99,0.0001726,2]
[363232602,1748634640600,-430.0,0.0001726,2]
[363232604,1748634640610,-470.16,0.0001726,2]
[363232606,1748634640620,-1804.47,0.0001726,2]
[363232607,1748634640629,-1967.26,0.0001726,2]
[363232609,1748634640639,-1249.25,0.0001726,2]
[363232610,1748634640649,-527.39,0.0001726,2]
[363232612,1748634640659,-2483.78,0.0001726,2]
[363232614,1748634640668,-465.52,0.0001726,2]
[363232615,1748634640677,-540.9,0.0001726,2]
[363232629,1748634640864,-430.0,0.0001726,2]
[363232631,1748634640874,-430.0,0.0001726,2]
[363232633,1748634640883,-566.93,0.0001726,2]
[363232634,1748634640892,-430.0,0.0001726,2]
[363232636,1748634640902,-2327.39,0.0001726,2]
[363232638,1748634640911,-430.0,0.0001726,2]
[363232639,1748634640921,-465.5,0.0001726,2]
[363232641,1748634640930,-430.0,0.0001726,2]
[363232642,1748634640939,-718.77,0.0001726,2]
[363232644,1748634640948,-4336.15,0.0001726,2]
[363232646,1748634640957,-477.09,0.0001726,2]
[363232647,1748634640966,-656.88,0.0001726,2]
[363232649,1748634640975,-708.34,0.0001726,2]
[363232651,1748634640984,-1988.45,0.0001726,2]
[363232652,1748634640992,-430.0,0.0001726,2]
[363232654,1748634641001,-494.1,0.0001726,2]
[363232655,1748634641010,-2611.6,0.0001726,2]
[363232657,1748634641019,-430.0,0.0001726,2]
[363232659,1748634641028,-430.0,0.0001726,2]
[363232660,1748634641037,-1821.01,0.0001726,2]
[363232662,1748634641046,-430.0,0.0001726,2]
[363232664,1748634641055,-310.41535562,0.0001726,2]
[363232665,1748634641064,-810.98,0.0001726,2]
[363232667,1748634641073,-776.71,0.0001726,2]
[363232668,1748634641082,-1097.75,0.0001726,2]
[363232670,1748634641091,-1529.5,0.0001726,2]
[363232672,1748634641100,-157.68947152,0.0001726,2]
[363232673,1748634641109,-430.0,0.0001726,2]
[363232675,1748634641118,-568.15364122,0.0001726,2]
[363232676,1748634641127,-430.0,0.0001726,2]
[363232678,1748634641136,-343.06438386,0.0001726,2]
[363232680,1748634641145,-430.0,0.0001726,2]
[363232681,1748634641155,-1248.66,0.0001726,2]
[363232683,1748634641165,-310.80096579,0.0001726,2]
[363232685,1748634641174,-430.0,0.0001726,2]
[363232686,1748634641183,-977.22,0.0001726,2]
[363232688,1748634641192,-430.0,0.0001726,2]
[363232689,1748634641201,-430.0,0.0001726,2]
[363232691,1748634641210,-431.85,0.0001726,2]
[363232693,1748634641219,-430.0,0.0001726,2]
[363232694,1748634641228,-430.0,0.0001726,2]
[363232696,1748634641237,-5354.84060259,0.000174,2]
[363232697,1748634641246,-5354.84060256,0.000174,2]
[363232699,1748634641256,-5354.84060256,0.000174,2]
[363232701,1748634641266,-5354.84060256,0.000174,2]
[363232702,1748634641278,-5354.84060256,0.000174,2]
[363232704,1748634641287,-5354.84060256,0.00017452,2]
[363232705,1748634641296,-500.0,0.00017479,2]
[363232707,1748634641306,-500.0,0.00017479,2]
[363232709,1748634641315,-500.0,0.00017479,2]
[363232710,1748634641325,-500.0,0.0001749,2]
[363232712,1748634641334,-565.02838252,0.00017517,2]
[363232714,1748634641343,-500.0,0.00017517,2]
[363232715,1748634641354,-500.0,0.00017517,2]
[363232717,1748634641363,-615.67473108,0.00017517,2]
[363232718,1748634641372,-500.0,0.0001753,2]
[363232720,1748634641393,-907.17,0.00017533,2]
[363232722,1748634641413,-430.0,0.00017533,2]
[363232724,1748634641432,-430.0,0.00017534,2]
[363232725,1748634641454,-430.0,0.00017534,2]
[363232727,1748634641475,-430.0,0.00017534,2]
[363232729,1748634641497,-430.0,0.00017534,2]
[363232731,1748634641517,-159.77,0.00017534,2]
[363232732,1748634641538,-430.0,0.00017534,2]
[363232734,1748634641559,-1155.74,0.00017534,2]
[363232736,1748634641581,-430.0,0.00017534,2]
[363232738,1748634641604,-1280.42,0.00017534,2]
[363232740,1748634641626,-430.0,0.00017534,2]
[363232741,1748634641646,-1990.99,0.00017534,2]
[363232743,1748634641669,-430.0,0.00017534,2]
[363232745,1748634641691,-470.16,0.00017534,2]
[363232746,1748634641704,-1804.47,0.00017534,2]
[363232748,1748634641713,-1967.26,0.00017534,2]
[363232750,1748634641722,-1249.25,0.00017534,2]
[363232751,1748634641732,-527.39,0.00017534,2]
[363232753,1748634641741,-2483.78,0.00017534,2]
[363232755,1748634641750,-465.52,0.00017534,2]
[363232756,1748634641759,-540.9,0.00017534,2]
[363232758,1748634641768,-430.0,0.00017534,2]
[363232759,1748634641777,-430.0,0.00017534,2]
[363232761,1748634641786,-566.93,0.00017534,2]
[363232763,1748634641795,-430.0,0.00017534,2]
[363232764,1748634641804,-2327.39,0.00017534,2]
[363232766,1748634641813,-430.0,0.00017534,2]
[363232768,1748634641822,-465.5,0.00017534,2]
[363232769,1748634641832,-430.0,0.00017534,2]
[363232771,1748634641841,-718.77,0.00017534,2]
[363232772,1748634641851,-4336.15,0.00017534,2]
[363232774,1748634641860,-477.09,0.00017534,2]
[363232776,1748634641869,-656.88,0.00017534,2]
[363232777,1748634641878,-708.34,0.00017534,2]
[363232779,1748634641888,-1988.45,0.00017534,2]
[363232781,1748634641897,-430.0,0.00017534,2]
[363232782,1748634641906,-494.1,0.00017534,2]
[363232784,1748634641915,-2611.6,0.00017534,2]
[363232785,1748634641924,-430.0,0.00017534,2]
[363232787,1748634641934,-430.0,0.00017534,2]
[363232789,1748634641943,-1821.01,0.00017534,2]
[363232790,1748634641953,-430.0,0.00017534,2]
[363232792,1748634641962,-810.98,0.00017534,2]
[363232794,1748634641971,-776.71,0.00017534,2]
[363232795,1748634641979,-1097.75,0.00017534,2]
[363232797,1748634641989,-1154.31964208,0.00017534,2]
[363232802,1748634642035,-375.18035792,0.00017534,2]
[363232804,1748634642044,-430.0,0.00017534,2]
[363232806,1748634642053,-430.0,0.00017534,2]
[363232808,1748634642062,-430.0,0.00017534,2]
[363232810,1748634642071,-1248.66,0.00017534,2]
[363232812,1748634642080,-430.0,0.00017534,2]
[363232814,1748634642089,-977.22,0.00017534,2]
[363232816,1748634642099,-430.0,0.00017534,2]
[363232818,1748634642108,-430.0,0.00017534,2]
[363232820,1748634642117,-431.85,0.00017534,2]
[363232822,1748634642127,-430.0,0.00017534,2]
[363232823,1748634642136,-430.0,0.00017534,2]
[363232825,1748634642145,-500.0,0.00017547,2]
[363232827,1748634642155,-704.93254091,0.00017628,2]
[363232832,1748634642545,-0.00720058,0.00016438,2]
[363232899,1748634643275,-987.88279942,0.00016438,2]
[363232901,1748634643285,-430.0,0.00016438,2]
[363232903,1748634643294,-430.0,0.00016438,2]
[363232905,1748634643304,-430.0,0.00016438,2]
[363232908,1748634643313,-500.0,0.00016653,2]
[363232910,1748634643323,-615.4541858,0.00016653,2]
[363232913,1748634643333,-163.82245223,0.00016653,2]
[363232916,1748634643342,-500.0,0.00016653,2]
[363232919,1748634643352,-201.13222046,0.00016653,2]
[363232921,1748634643362,-500.0,0.00016653,2]
[363232925,1748634643372,-500.0,0.00016653,2]
[363232927,1748634643382,-500.0,0.00016653,2]
[363232930,1748634643392,-500.0,0.00016653,2]
[363232932,1748634643401,-500.0,0.00016653,2]
[363232934,1748634643410,-500.0,0.00016653,2]
[363232936,1748634643420,-500.0,0.00016653,2]
[363232938,1748634643429,-987.89,0.00016712,2]
[363232940,1748634643438,-430.0,0.00016712,2]
[363232942,1748634643449,-987.89,0.00016986,2]
[363232945,1748634643459,-430.0,0.00016986,2]
[363232946,1748634643468,-987.89,0.0001726,2]
[363232948,1748634643478,-430.0,0.0001726,2]
[363232950,1748634643488,-987.89,0.00017534,2]
[363232952,1748634643497,-430.0,0.00017534,2]
[363232954,1748634643507,-7936.41745909,0.00017628,2]
[363232956,1748634643516,-261.67097017,0.0001767,2]
[363232958,1748634643525,-300.0,0.0001767,2]
[363232960,1748634643534,-300.0,0.0001767,2]
[363232962,1748634643543,-300.0,0.0001767,2]
[363232964,1748634643552,-207.4,0.0001767,2]
[363232966,1748634643561,-300.0,0.0001767,2]
[363232968,1748634643571,-300.0,0.0001767,2]
[363232970,1748634643581,-300.0,0.0001767,2]
[363232972,1748634643590,-300.0,0.0001767,2]
[363232974,1748634643599,-5000.0,0.0001767,2]
[363232976,1748634643609,-300.0,0.0001767,2]
[363232978,1748634643618,-300.0,0.0001767,2]
[363232980,1748634643627,-300.0,0.0001767,2]
[363232982,1748634643636,-300.0,0.0001767,2]
[363232984,1748634643645,-300.0,0.0001767,2]
[363232986,1748634643654,-300.0,0.0001767,2]
[363232988,1748634643663,-300.0,0.0001767,2]
[363232990,1748634643672,-300.0,0.0001767,2]
[363232992,1748634643681,-2483.34298088,0.00017751,2]
[363232995,1748634643695,-2094.05920216,0.00017751,2]
[363232997,1748634643704,-5354.84060256,0.00017762,2]
[363232999,1748634643713,-587.0,0.00017785,2]
[363233001,1748634643722,-160.0,0.00017807,2]
[363233003,1748634643731,-907.17,0.00017807,2]
[363233005,1748634643740,-430.0,0.00017807,2]
[363233007,1748634643750,-151.0,0.00017808,2]
[363233009,1748634643760,-151.0,0.00017808,2]
[363233011,1748634643769,-494.264858,0.00017808,2]
[363233013,1748634643778,-494.264858,0.00017808,2]
[363233015,1748634643787,-430.0,0.00017808,2]
[363233017,1748634643796,-430.0,0.00017808,2]
[363233019,1748634643805,-430.0,0.00017808,2]
[363233021,1748634643814,-430.0,0.00017808,2]
[363233023,1748634643823,-1155.74,0.00017808,2]
[363233025,1748634643832,-430.0,0.00017808,2]
[363233027,1748634643841,-1280.42,0.00017808,2]
[363233029,1748634643850,-215.24,0.00017808,2]
[363233031,1748634643859,-430.0,0.00017808,2]
[363233033,1748634643868,-470.16,0.00017808,2]
[363233035,1748634643877,-1967.26,0.00017808,2]
[363233037,1748634643887,-1249.25,0.00017808,2]
[363233039,1748634643895,-527.39,0.00017808,2]
[363233041,1748634643905,-2483.78,0.00017808,2]
[363233043,1748634643913,-465.52,0.00017808,2]
[363233045,1748634643922,-540.9,0.00017808,2]
[363233047,1748634643932,-430.0,0.00017808,2]
[363233049,1748634643941,-430.0,0.00017808,2]
[363233051,1748634643951,-566.93,0.00017808,2]
[363233053,1748634643960,-430.0,0.00017808,2]
[363233054,1748634643970,-2327.39,0.00017808,2]
[363233056,1748634643979,-465.5,0.00017808,2]
[363233058,1748634643988,-430.0,0.00017808,2]
[363233060,1748634643997,-718.77,0.00017808,2]
[363233062,1748634644006,-430.0,0.00017808,2]
[363233064,1748634644016,-2170.03603404,0.00017808,2]
[363233284,1748634646345,-138.43852544,0.00016712,2]
[363233286,1748634646357,-291.56147456,0.00016712,2]
[363233289,1748634646368,-430.0,0.00016986,2]
[363233291,1748634646379,-430.0,0.0001726,2]
[363233292,1748634646388,-448.64,0.00017534,2]
[363233294,1748634646397,-2166.11396596,0.00017808,2]
[363233296,1748634646407,-477.09,0.00017808,2]
[363233299,1748634646416,-656.88,0.00017808,2]
[363233301,1748634646425,-708.34,0.00017808,2]
[363233303,1748634646434,-1988.45,0.00017808,2]
[363233305,1748634646443,-340.20992377,0.00017808,2]
[363233307,1748634646455,-494.1,0.00017808,2]
[363233322,1748634646592,-2611.6,0.00017808,2]
[363233323,1748634646627,-430.0,0.00017808,2]
[363233324,1748634646635,-534.21548987,0.00017808,2]
[363233325,1748634646644,-1821.01,0.00017808,2]
[363233326,1748634646653,-430.0,0.00017808,2]
[363233327,1748634646662,-810.98,0.00017808,2]
[363233328,1748634646670,-279.48527722,0.00017808,2]
[363234898,1748634777999,-1767.55,0.00015411,2]
[363234899,1748634778020,-164.77781743,0.00015945,2]
[363234900,1748634778044,-164.77781743,0.00015978,2]
[363234901,1748634778065,-164.77781743,0.00016012,2]
[363234902,1748634778086,-306.32050037,0.00016045,2]
[363234903,1748634778107,-3535.1,0.00016145,2]
[363234904,1748634778128,-300.0,0.00016273,2]
[363234905,1748634778150,-4362.69604734,0.00016274,2]
[363234910,1748634853117,-5000.0,0.00015256,2]
[363234911,1748634853141,-1671.14,0.0001541,2]
[363234912,1748634853164,-300.0,0.00016143,2]
[363234913,1748634853187,-3256.86,0.00016144,2]
[363234914,1748634872225,523.857976,0.00013699,2]
[363234917,1748634925167,-1603.43,0.00015415,2]
[363234918,1748634925190,-204.2136669,0.00015944,2]
[363234919,1748634925213,-5000.0,0.00015983,2]
[363234920,1748634925234,-300.0,0.00016148,2]
[363234921,1748634925255,-1200.0,0.00016148,2]
[363234922,1748634925278,-1367.3563331,0.00016149,2]
[363234923,1748634995112,-1560.66,0.00015409,2]
[363234924,1748634995135,-5421.2472511,0.00015479,2]
[363234925,1748634995157,-5000.0,0.00015988,2]
[363234926,1748634995178,-164.77781743,0.00016049,2]
[363234927,1748634995201,-1744.31493147,0.00016143,2]
[363234929,1748635060193,-204.2136669,0.00015379,2]
[363234930,1748635060216,-1500.57,0.0001543,2]
[363234931,1748635060238,-3204.2163331,0.00015982,2]
[363234932,1748635192773,-5000.0,0.00015276,2]
[363234937,1748635262239,-5000.0,0.00015276,2]
[363234938,1748635262262,-70.0,0.0001533,2]
[363234939,1748635279634,-212.0816168,0.00015177,2]
[363234940,1748635329435,-4787.9183832,0.00015177,2]
[363234941,1748635329457,-4769.3473587,0.00015216,2]
[363234942,1748635329479,-134.2136669,0.0001533,2]
[363234943,1748635329500,-300.0,0.00015429,2]
[363234944,1748635329521,-520.5205912,0.00015573,2]
[363234945,1748635400154,-5000.0,0.00015275,2]
[363234946,1748635400177,-1478.76,0.00015429,2]
[363234947,1748635400198,-183.24,0.00015573,2]
[363234948,1748635470982,-200.78402831,0.00015077,2]
[363234949,1748635471004,-3158.21597169,0.00015417,2]
[363234952,1748635602892,-5000.0,0.00015263,2]
[363234953,1748635602916,-1094.0,0.00015455,2]
[363234955,1748635672169,-7288.0,0.00015166,2]
[363234972,1748635832266,-5000.0,0.00015015,2]
[363234973,1748635832276,-1200.0,0.00015164,2]
[363234974,1748635832285,-300.0,0.00015165,2]
[363234975,1748635832295,-300.0,0.00015165,2]
[363234976,1748635832304,-300.0,0.00015165,2]
[363234977,1748635832314,-300.0,0.00015165,2]
[363234978,1748635832323,-300.0,0.00015165,2]
[363234979,1748635832332,-9130.44583846,0.00015166,2]
[363234982,1748635838149,-867.379751,0.00015015,2]
[363234988,1748635838203,-4132.620249,0.00015015,2]
[363234990,1748635838213,-8481.55416154,0.00015166,2]
[363234992,1748635838222,-1509.65,0.00015472,2]
[363234994,1748635838231,-164.7020368,0.00015573,2]
[363234996,1748635838241,-432.0,0.00016,2]
[363234998,1748635838250,-50000.0,0.00016099,2]
[363235000,1748635838259,-300.0,0.00016099,2]
[363235002,1748635838269,-10020.0,0.000161,2]
[363235004,1748635838278,-214.87289709,0.00016134,2]
[363235006,1748635838287,-3019.3,0.00016209,2]
[363235008,1748635838296,-500.0,0.00016398,2]
[363235010,1748635838306,-348.4102675,0.00016398,2]
[363235012,1748635838315,-500.0,0.00016398,2]
[363235014,1748635838324,-500.0,0.00016398,2]
[363235016,1748635838333,-463.34590967,0.00016398,2]
[363235018,1748635838342,-500.0,0.00016398,2]
[363235020,1748635838351,-500.0,0.00016398,2]
[363235022,1748635838360,-500.0,0.00016398,2]
[363235024,1748635838369,-500.0,0.00016398,2]
[363235026,1748635838379,-500.0,0.00016398,2]
[363235028,1748635838388,-488.61909652,0.00016398,2]
[363235030,1748635838397,-632.64370873,0.00016398,2]
[363235032,1748635838406,-500.0,0.00016398,2]
[363235034,1748635838419,-500.0,0.00016398,2]
[363235036,1748635838429,-500.0,0.00016398,2]
[363235038,1748635838438,-500.0,0.00016398,2]
[363235039,1748635838447,-500.0,0.00016398,2]
[363235040,1748635838457,-437.0641946,0.00016398,2]
[363235041,1748635838467,-500.0,0.00016398,2]
[363235042,1748635838476,-500.0,0.00016398,2]
[363235043,1748635838486,-642.55646861,0.00016398,2]
[363235044,1748635838495,-500.0,0.00016398,2]
[363235045,1748635838505,-500.0,0.00016398,2]
[363235046,1748635838515,-500.0,0.00016398,2]
[363235047,1748635838525,-500.0,0.00016398,2]
[363235048,1748635838534,-500.0,0.00016398,2]
[363235049,1748635838544,-500.0,0.00016398,2]
[363235050,1748635838554,-500.0,0.00016398,2]
[363235051,1748635838563,-500.0,0.00016398,2]
[363235052,1748635838572,-500.0,0.00016398,2]
[363235053,1748635838581,-500.0,0.00016398,2]
[363235054,1748635838590,-500.0,0.00016398,2]
[363235055,1748635838599,-633.88900098,0.00016398,2]
[363235056,1748635838610,-500.0,0.00016398,2]
[363235057,1748635838619,-154.11104597,0.00016398,2]
[363235058,1748635838628,-500.0,0.00016398,2]
[363235059,1748635838638,-500.0,0.00016398,2]
[363235060,1748635838647,-500.0,0.00016398,2]
[363235061,1748635838656,-500.0,0.00016398,2]
[363235062,1748635838667,-500.0,0.00016398,2]
[363235063,1748635838676,-500.0,0.00016398,2]
[363235064,1748635838686,-500.0,0.00016398,2]
[363235065,1748635838695,-500.0,0.00016398,2]
[363235066,1748635838705,-500.0,0.00016398,2]
[363235067,1748635838716,-437.45187584,0.00016398,2]
[363235068,1748635838726,-500.0,0.00016398,2]
[363235071,1748635838736,-500.0,0.00016398,2]
[363235072,1748635838748,-500.0,0.00016398,2]
[363235075,1748635838760,-500.0,0.00016398,2]